[Event "Hoogeveen Open 2023"]
[Site "Hoogeveen, Netherlands"]
[Date "2023.10.28"]
[Round "9.1"]
[White "Lodici, Lorenzo"]
[Black "Elgersma, Onno"]
[Result "1-0"]
[TimeControl "90min/40moves + 30min + 30sec/move"]
[WhiteFideId "884189"]
[BlackFideId "1053531"]
[WhiteElo "2537"]
[BlackElo "2266"]

1. Nf3 {[%clk 01:21:03]} {[%emt 00:09:47]} d5 {[%clk 01:30:35]} {[%emt
00:00:34]} 2. g3 {[%clk 01:21:28]} {[%emt 00:00:05]} Nf6 {[%clk 01:30:38]}
{[%emt 00:00:28]} 3. Bg2 {[%clk 01:21:53]} {[%emt 00:00:04]} e6 {[%clk
01:29:56]} {[%emt 00:01:12]} 4. c4 {[%clk 01:21:18]} {[%emt 00:01:06]} Be7
{[%clk 01:18:47]} {[%emt 00:11:38]} 5. d4 {[%clk 01:21:39]} {[%emt 00:00:09]}
O-O {[%clk 01:19:13]} {[%emt 00:00:05]} 6. Nc3 {[%clk 01:22:06]} {[%emt
00:00:03]} dxc4 {[%clk 01:19:22]} {[%emt 00:00:21]} 7. Ne5 {[%clk 01:22:31]}
{[%emt 00:00:04]} Qd6 {[%clk 01:19:04]} {[%emt 00:00:49]} 8. O-O {[%clk
01:15:46]} {[%emt 00:07:15]} Qa6 {[%clk 01:16:56]} {[%emt 00:02:37]} 9. a4
{[%clk 01:16:12]} {[%emt 00:00:05]} Rd8 {[%clk 01:12:40]} {[%emt 00:04:45]} 10.
Nb5 {[%clk 01:06:48]} {[%emt 00:09:55]} Ne8 {[%clk 01:12:46]} {[%emt 00:00:23]}
11. Qc2 {[%clk 00:56:23]} {[%emt 00:10:55]} c6 {[%clk 00:53:28]} {[%emt
00:19:49]} 12. Na3 {[%clk 00:56:11]} {[%emt 00:00:42]} Rxd4 {[%clk 00:47:52]}
{[%emt 00:06:06]} 13. Be3 {[%clk 00:53:12]} {[%emt 00:03:29]} Rd8 {[%clk
00:48:12]} {[%emt 00:00:10]} 14. Naxc4 {[%clk 00:53:30]} {[%emt 00:00:12]} Nd7
{[%clk 00:44:11]} {[%emt 00:04:31]} 15. Nd3 {[%clk 00:50:26]} {[%emt 00:03:34]}
Nef6 {[%clk 00:41:14]} {[%emt 00:03:26]} 16. b4 {[%clk 00:49:15]} {[%emt
00:01:41]} Nd5 {[%clk 00:40:57]} {[%emt 00:00:47]} 17. Bd2 {[%clk 00:48:13]}
{[%emt 00:01:32]} N7b6 {[%clk 00:37:35]} {[%emt 00:03:51]} 18. Ncb2 {[%clk
00:46:00]} {[%emt 00:02:44]} e5 {[%clk 00:31:35]} {[%emt 00:06:30]} 19. e4
{[%clk 00:36:01]} {[%emt 00:10:30]} Nf6 {[%clk 00:31:56]} {[%emt 00:00:08]} 20.
Nxe5 {[%clk 00:35:33]} {[%emt 00:00:57]} Qe2 {[%clk 00:29:11]} {[%emt
00:03:16]} 21. Rad1 {[%clk 00:34:19]} {[%emt 00:01:41]} Qh5 {[%clk 00:27:49]}
{[%emt 00:01:56]} 22. Nbd3 {[%clk 00:28:54]} {[%emt 00:05:55]} Ng4 {[%clk
00:19:19]} {[%emt 00:09:00]} 23. Nxg4 {[%clk 00:27:06]} {[%emt 00:02:19]} Qxg4
{[%clk 00:19:01]} {[%emt 00:00:47]} 24. Nf4 {[%clk 00:23:04]} {[%emt 00:04:31]}
g5 {[%clk 00:12:49]} {[%emt 00:06:43]} 25. h3 {[%clk 00:20:52]} {[%emt
00:02:42]} Qd7 {[%clk 00:13:14]} {[%emt 00:00:05]} 26. Bc3 {[%clk 00:19:14]}
{[%emt 00:02:08]} Qe8 {[%clk 00:12:23]} {[%emt 00:01:21]} 27. Nh5 {[%clk
00:19:39]} {[%emt 00:00:05]} Be6 {[%clk 00:12:22]} {[%emt 00:00:31]} 28. Nf6+
{[%clk 00:16:58]} {[%emt 00:03:11]} Bxf6 {[%clk 00:12:47]} {[%emt 00:00:05]} 29.
Bxf6 {[%clk 00:17:26]} {[%emt 00:00:03]} Rxd1 {[%clk 00:12:58]} {[%emt
00:00:20]} 30. Qxd1 {[%clk 00:15:01]} {[%emt 00:02:55]} h6 {[%clk 00:13:25]}
{[%emt 00:00:03]} 31. f4 {[%clk 00:12:16]} {[%emt 00:03:15]} Nd7 {[%clk
00:12:32]} {[%emt 00:01:23]} 32. fxg5 {[%clk 00:11:47]} {[%emt 00:00:58]} Nxf6
{[%clk 00:12:57]} {[%emt 00:00:05]} 33. Rxf6 {[%clk 00:08:43]} {[%emt
00:03:34]} Qd8 {[%clk 00:11:44]} {[%emt 00:01:44]} 34. Qh5 {[%clk 00:07:23]}
{[%emt 00:01:49]} Qd4+ {[%clk 00:11:26]} {[%emt 00:00:48]} 35. Kh2 {[%clk
00:07:52]} {[%emt 00:00:02]} Qe5 {[%clk 00:11:47]} {[%emt 00:00:08]} 36. Qxh6
{[%clk 00:05:13]} {[%emt 00:03:09]} Rd8 {[%clk 00:12:01]} {[%emt 00:00:16]} 37.
Rf4 {[%clk 00:04:40]} {[%emt 00:01:02]} Qg7 {[%clk 00:10:38]} {[%emt 00:01:54]}
38. Qh4 {[%clk 00:04:00]} {[%emt 00:01:10]} Rd2 {[%clk 00:09:05]} {[%emt
00:02:03]} 39. Rf6 {[%clk 00:04:25]} {[%emt 00:00:04]} Qh7 {[%clk 00:09:27]}
{[%emt 00:00:09]} 40. Rh6 {[%clk 00:04:03]} {[%emt 00:00:52]} Qg7 {[%clk
00:09:52]} {[%emt 00:00:05]} 41. Qf4 {[%clk 00:02:25]} {[%emt 00:02:07]} Qd4
{[%clk 00:08:44]} {[%emt 00:01:39]} 42. g6 {[%clk 00:29:41]} {[%emt 00:03:14]}
Bc4 {[%clk 00:32:10]} {[%emt 00:07:04]} 43. gxf7+ {[%clk 00:27:13]} {[%emt
00:02:59]} Bxf7 {[%clk 00:32:32]} {[%emt 00:00:08]} 44. Qg5+ {[%clk 00:19:54]}
{[%emt 00:07:48]} Kf8 {[%clk 00:32:32]} {[%emt 00:00:30]} 45. Rh8+ {[%clk
00:20:16]} {[%emt 00:00:08]} Qxh8 {[%clk 00:32:48]} {[%emt 00:00:14]} 46. Qxd2
{[%clk 00:20:42]} {[%emt 00:00:04]} Qe5 {[%clk 00:32:55]} {[%emt 00:00:23]} 47.
h4 {[%clk 00:20:49]} {[%emt 00:00:23]} b6 {[%clk 00:33:14]} {[%emt 00:00:11]}
48. Qf4 {[%clk 00:20:47]} {[%emt 00:00:32]} Qb2 {[%clk 00:31:50]} {[%emt
00:01:54]} 49. Qd6+ {[%clk 00:20:26]} {[%emt 00:00:50]} Kg7 {[%clk 00:32:15]}
{[%emt 00:00:05]} 50. Qe7 {[%clk 00:18:39]} {[%emt 00:02:17]} a5 {[%clk
00:31:42]} {[%emt 00:01:04]} 51. bxa5 {[%clk 00:18:48]} {[%emt 00:00:21]} bxa5
{[%clk 00:32:06]} {[%emt 00:00:06]} 52. e5 {[%clk 00:18:24]} {[%emt 00:00:54]}
Qa2 {[%clk 00:31:55]} {[%emt 00:00:41]} 53. e6 {[%clk 00:17:10]} {[%emt
00:01:44]} Qxe6 {[%clk 00:32:20]} {[%emt 00:00:06]} 54. Qxe6 {[%clk 00:17:36]}
{[%emt 00:00:05]} Bxe6 {[%clk 00:32:45]} {[%emt 00:00:05]} 55. Bxc6 {[%clk
00:18:02]} {[%emt 00:00:04]} 1-0

[Event "Hoogeveen Open 2023"]
[Site "Hoogeveen, Netherlands"]
[Date "2023.10.28"]
[Round "9.2"]
[White "De Winter, Arthur"]
[Black "Zwirs, Nico"]
[Result "0-1"]
[TimeControl "90min/40moves + 30min + 30sec/move"]
[WhiteFideId "1069020"]
[BlackFideId "1036432"]
[WhiteElo "2397"]
[BlackElo "2451"]

1. e4 {[%clk 01:30:56]} {[%emt 00:00:02]} c5 {[%clk 01:30:58]} {[%emt
00:00:04]} 2. Nf3 {[%clk 01:31:23]} {[%emt 00:00:03]} d6 {[%clk 01:31:24]}
{[%emt 00:00:04]} 3. d4 {[%clk 01:31:50]} {[%emt 00:00:03]} cxd4 {[%clk
01:31:49]} {[%emt 00:00:05]} 4. Nxd4 {[%clk 01:32:17]} {[%emt 00:00:02]} Nf6
{[%clk 01:32:13]} {[%emt 00:00:07]} 5. Nc3 {[%clk 01:32:44]} {[%emt 00:00:03]}
a6 {[%clk 01:32:36]} {[%emt 00:00:07]} 6. h4 {[%clk 01:33:10]} {[%emt
00:00:03]} e5 {[%clk 01:32:47]} {[%emt 00:00:19]} 7. Nb3 {[%clk 01:33:37]}
{[%emt 00:00:03]} Be7 {[%clk 01:32:53]} {[%emt 00:00:24]} 8. Be2 {[%clk
01:34:03]} {[%emt 00:00:04]} Be6 {[%clk 01:32:52]} {[%emt 00:00:31]} 9. f4
{[%clk 01:34:31]} {[%emt 00:00:03]} exf4 {[%clk 01:32:50]} {[%emt 00:00:31]} 10.
Bxf4 {[%clk 01:34:53]} {[%emt 00:00:08]} Nc6 {[%clk 01:33:14]} {[%emt
00:00:06]} 11. Qd2 {[%clk 01:34:31]} {[%emt 00:00:53]} Ne5 {[%clk 01:32:24]}
{[%emt 00:01:18]} 12. O-O-O {[%clk 01:30:37]} {[%emt 00:04:24]} O-O {[%clk
01:32:42]} {[%emt 00:00:13]} 13. Nd4 {[%clk 01:24:31]} {[%emt 00:06:37]} Rc8
{[%clk 01:33:00]} {[%emt 00:00:12]} 14. Kb1 {[%clk 01:24:07]} {[%emt 00:00:54]}
Re8 {[%clk 01:32:21]} {[%emt 00:01:08]} 15. h5 {[%clk 00:58:16]} {[%emt
00:26:22]} h6 {[%clk 01:32:04]} {[%emt 00:00:47]} 16. Rhg1 {[%clk 00:53:34]}
{[%emt 00:05:13]} Nh7 {[%clk 01:08:50]} {[%emt 00:23:44]} 17. Nf5 {[%clk
00:51:08]} {[%emt 00:02:55]} Bxf5 {[%clk 01:07:36]} {[%emt 00:01:45]} 18. exf5
{[%clk 00:51:28]} {[%emt 00:00:10]} Bg5 {[%clk 01:07:03]} {[%emt 00:01:03]} 19.
Ne4 {[%clk 00:49:30]} {[%emt 00:02:28]} Bxf4 {[%clk 00:49:40]} {[%emt
00:17:53]} 20. Qxf4 {[%clk 00:49:34]} {[%emt 00:00:26]} d5 {[%clk 00:48:10]}
{[%emt 00:02:00]} 21. g4 {[%clk 00:44:10]} {[%emt 00:05:53]} Nc4 {[%clk
00:40:28]} {[%emt 00:08:12]} 22. Ng3 {[%clk 00:40:22]} {[%emt 00:04:19]} Qb6
{[%clk 00:25:00]} {[%emt 00:15:57]} 23. Bxc4 {[%clk 00:40:41]} {[%emt
00:00:12]} Rxc4 {[%clk 00:23:39]} {[%emt 00:01:51]} 24. Qf3 {[%clk 00:40:13]}
{[%emt 00:00:57]} Qe3 {[%clk 00:16:16]} {[%emt 00:07:52]} 25. Qxd5 {[%clk
00:38:06]} {[%emt 00:02:39]} Rxg4 {[%clk 00:16:20]} {[%emt 00:00:25]} 26. Qd6
{[%clk 00:37:51]} {[%emt 00:00:45]} Nf6 {[%clk 00:15:13]} {[%emt 00:01:37]} 27.
a3 {[%clk 00:36:20]} {[%emt 00:02:01]} Ne4 {[%clk 00:12:43]} {[%emt 00:02:59]}
28. Qd7 {[%clk 00:36:19]} {[%emt 00:00:32]} Nxg3 {[%clk 00:12:20]} {[%emt
00:00:54]} 29. Rde1 {[%clk 00:36:14]} {[%emt 00:00:34]} Qxe1+ {[%clk 00:10:50]}
{[%emt 00:02:01]} 30. Rxe1 {[%clk 00:36:42]} {[%emt 00:00:02]} Rxe1+ {[%clk
00:11:12]} {[%emt 00:00:07]} 31. Ka2 {[%clk 00:37:11]} {[%emt 00:00:01]} Nxh5
{[%clk 00:07:49]} {[%emt 00:03:53]} 32. Qxb7 {[%clk 00:37:34]} {[%emt
00:00:07]} Nf6 {[%clk 00:07:12]} {[%emt 00:01:07]} 33. Qxa6 {[%clk 00:36:49]}
{[%emt 00:01:15]} h5 {[%clk 00:07:33]} {[%emt 00:00:09]} 34. Qd6 {[%clk
00:34:13]} {[%emt 00:03:06]} Re2 {[%clk 00:06:04]} {[%emt 00:01:57]} 35. b4
{[%clk 00:33:44]} {[%emt 00:01:01]} Rxc2+ {[%clk 00:06:14]} {[%emt 00:00:20]}
36. Kb3 {[%clk 00:34:11]} {[%emt 00:00:03]} Rc3+ {[%clk 00:06:14]} {[%emt
00:00:27]} 0-1

[Event "Hoogeveen Open 2023"]
[Site "Hoogeveen, Netherlands"]
[Date "2023.10.28"]
[Round "9.3"]
[White "Van Dael, Siem"]
[Black "Van Foreest, Machteld"]
[Result "1-0"]
[TimeControl "90min/40moves + 30min + 30sec/move"]
[WhiteFideId "1049771"]
[BlackFideId "1051563"]
[WhiteElo "2321"]
[BlackElo "2266"]

1. e4 {[%clk 01:30:57]} {[%emt 00:00:02]} c5 {[%clk 01:30:52]} {[%emt
00:00:09]} 2. Nf3 {[%clk 01:31:22]} {[%emt 00:00:05]} e6 {[%clk 01:31:17]}
{[%emt 00:00:05]} 3. d4 {[%clk 01:31:48]} {[%emt 00:00:04]} cxd4 {[%clk
01:31:45]} {[%emt 00:00:02]} 4. Nxd4 {[%clk 01:32:10]} {[%emt 00:00:08]} Nf6
{[%clk 01:32:12]} {[%emt 00:00:03]} 5. Nc3 {[%clk 01:32:32]} {[%emt 00:00:07]}
Nc6 {[%clk 01:32:41]} {[%emt 00:00:02]} 6. Be2 {[%clk 01:32:56]} {[%emt
00:00:06]} Bb4 {[%clk 01:29:28]} {[%emt 00:03:43]} 7. O-O {[%clk 01:31:37]}
{[%emt 00:01:49]} Bxc3 {[%clk 01:25:57]} {[%emt 00:04:01]} 8. bxc3 {[%clk
01:31:56]} {[%emt 00:00:11]} Nxe4 {[%clk 01:26:07]} {[%emt 00:00:21]} 9. Nxc6
{[%clk 01:32:18]} {[%emt 00:00:07]} dxc6 {[%clk 01:25:32]} {[%emt 00:01:05]} 10.
Bd3 {[%clk 01:32:42]} {[%emt 00:00:06]} Nc5 {[%clk 01:15:06]} {[%emt 00:10:56]}
11. Qg4 {[%clk 01:33:03]} {[%emt 00:00:08]} O-O {[%clk 00:54:18]} {[%emt
00:21:18]} 12. Rd1 {[%clk 01:17:14]} {[%emt 00:16:19]} Nxd3 {[%clk 00:47:09]}
{[%emt 00:07:40]} 13. Rxd3 {[%clk 01:17:38]} {[%emt 00:00:05]} Qe7 {[%clk
00:45:35]} {[%emt 00:02:05]} 14. Rg3 {[%clk 01:10:14]} {[%emt 00:07:54]} f5
{[%clk 00:45:44]} {[%emt 00:00:21]} 15. Qc4 {[%clk 01:09:44]} {[%emt 00:01:00]}
b5 {[%clk 00:40:05]} {[%emt 00:06:10]} 16. Qxc6 {[%clk 00:59:55]} {[%emt
00:10:18]} Bb7 {[%clk 00:35:25]} {[%emt 00:05:11]} 17. Qxb5 {[%clk 00:59:22]}
{[%emt 00:01:02]} f4 {[%clk 00:35:39]} {[%emt 00:00:16]} 18. Rg4 {[%clk
00:58:55]} {[%emt 00:00:56]} Rf5 {[%clk 00:29:54]} {[%emt 00:06:16]} 19. Qa4
{[%clk 00:52:07]} {[%emt 00:07:18]} e5 {[%clk 00:24:05]} {[%emt 00:06:20]} 20.
Ba3 {[%clk 00:44:01]} {[%emt 00:08:36]} Qf7 {[%clk 00:24:23]} {[%emt 00:00:11]}
21. h4 {[%clk 00:42:26]} {[%emt 00:02:05]} Rd8 {[%clk 00:17:59]} {[%emt
00:06:55]} 22. Rb1 {[%clk 00:40:34]} {[%emt 00:02:21]} h5 {[%clk 00:14:36]}
{[%emt 00:03:54]} 23. Rg5 {[%clk 00:40:16]} {[%emt 00:00:48]} Rxg5 {[%clk
00:15:01]} {[%emt 00:00:05]} 24. hxg5 {[%clk 00:40:41]} {[%emt 00:00:05]} Bxg2
{[%clk 00:06:51]} {[%emt 00:08:41]} 25. Kxg2 {[%clk 00:35:59]} {[%emt
00:05:12]} Qd5+ {[%clk 00:04:23]} {[%emt 00:02:57]} 26. Kg1 {[%clk 00:34:21]}
{[%emt 00:02:07]} Qf3 {[%clk 00:04:39]} {[%emt 00:00:15]} 27. Qc4+ {[%clk
00:32:27]} {[%emt 00:02:24]} Kh8 {[%clk 00:03:05]} {[%emt 00:02:04]} 28. Qf1
{[%clk 00:29:46]} {[%emt 00:03:11]} Qxc3 {[%clk 00:01:41]} {[%emt 00:01:54]} 29.
Bb2 {[%clk 00:28:37]} {[%emt 00:01:39]} Qc5 {[%clk 00:00:57]} {[%emt 00:01:13]}
30. Qe2 {[%clk 00:28:04]} {[%emt 00:01:03]} Rb8 {[%clk 00:00:40]} {[%emt
00:00:47]} 31. Qxh5+ {[%clk 00:28:03]} {[%emt 00:00:32]} Kg8 {[%clk 00:01:09]}
{[%emt 00:00:01]} 32. g6 {[%clk 00:28:17]} {[%emt 00:00:16]} Rb6 {[%clk
00:00:34]} {[%emt 00:01:05]} 33. Rd1 {[%clk 00:27:46]} {[%emt 00:01:01]} 1-0

[Event "Hoogeveen Open 2023"]
[Site "Hoogeveen, Netherlands"]
[Date "2023.10.28"]
[Round "9.4"]
[White "Ernst, Sipke"]
[Black "Schoorl, Rob"]
[Result "1-0"]
[TimeControl "90min/40moves + 30min + 30sec/move"]
[WhiteFideId "1004689"]
[BlackFideId "1009508"]
[WhiteElo "2551"]
[BlackElo "2357"]

1. d4 {[%clk 01:30:51]} {[%emt 00:00:06]} g6 {[%clk 01:30:48]} {[%emt
00:00:14]} 2. e4 {[%clk 01:31:05]} {[%emt 00:00:17]} Bg7 {[%clk 01:31:11]}
{[%emt 00:00:08]} 3. Nf3 {[%clk 01:31:25]} {[%emt 00:00:09]} d6 {[%clk
01:30:40]} {[%emt 00:01:02]} 4. Be2 {[%clk 01:31:50]} {[%emt 00:00:05]} c5
{[%clk 01:27:55]} {[%emt 00:03:15]} 5. c3 {[%clk 01:23:55]} {[%emt 00:08:25]}
Nf6 {[%clk 01:26:03]} {[%emt 00:02:22]} 6. dxc5 {[%clk 01:24:19]} {[%emt
00:00:06]} dxc5 {[%clk 01:21:28]} {[%emt 00:05:05]} 7. Qxd8+ {[%clk 01:24:11]}
{[%emt 00:00:37]} Kxd8 {[%clk 01:21:55]} {[%emt 00:00:03]} 8. Ng5 {[%clk
01:20:27]} {[%emt 00:04:15]} Ke8 {[%clk 01:10:27]} {[%emt 00:11:57]} 9. Bc4
{[%clk 01:20:50]} {[%emt 00:00:06]} e6 {[%clk 01:03:18]} {[%emt 00:07:40]} 10.
f3 {[%clk 01:12:03]} {[%emt 00:09:17]} Nc6 {[%clk 00:54:00]} {[%emt 00:09:48]}
11. Be3 {[%clk 01:12:15]} {[%emt 00:00:17]} b6 {[%clk 00:50:03]} {[%emt
00:04:27]} 12. Na3 {[%clk 01:08:41]} {[%emt 00:04:05]} h6 {[%clk 00:40:42]}
{[%emt 00:09:51]} 13. Nh3 {[%clk 01:07:44]} {[%emt 00:01:27]} a6 {[%clk
00:41:06]} {[%emt 00:00:07]} 14. Be2 {[%clk 01:08:10]} {[%emt 00:00:04]} Nd7
{[%clk 00:38:27]} {[%emt 00:03:10]} 15. Nc4 {[%clk 01:02:22]} {[%emt 00:06:18]}
b5 {[%clk 00:34:19]} {[%emt 00:04:38]} 16. Nd6+ {[%clk 01:01:09]} {[%emt
00:01:43]} Ke7 {[%clk 00:34:41]} {[%emt 00:00:08]} 17. O-O-O {[%clk 01:00:06]}
{[%emt 00:01:32]} Be5 {[%clk 00:22:01]} {[%emt 00:13:11]} 18. Nxc8+ {[%clk
00:58:18]} {[%emt 00:02:18]} Raxc8 {[%clk 00:22:10]} {[%emt 00:00:21]} 19. f4
{[%clk 00:58:00]} {[%emt 00:00:48]} Bb8 {[%clk 00:21:30]} {[%emt 00:01:10]} 20.
Rd2 {[%clk 00:51:50]} {[%emt 00:06:41]} Nd4 {[%clk 00:17:21]} {[%emt 00:04:38]}
21. Bd1 {[%clk 00:46:16]} {[%emt 00:06:03]} Nf6 {[%clk 00:08:34]} {[%emt
00:09:18]} 22. Re1 {[%clk 00:36:38]} {[%emt 00:10:09]} e5 {[%clk 00:07:59]}
{[%emt 00:01:04]} 23. Bf2 {[%clk 00:34:53]} {[%emt 00:02:15]} Ne6 {[%clk
00:07:49]} {[%emt 00:00:40]} 24. f5 {[%clk 00:32:01]} {[%emt 00:03:22]} Ng5
{[%clk 00:07:18]} {[%emt 00:01:00]} 25. Nxg5 {[%clk 00:29:35]} {[%emt
00:02:56]} hxg5 {[%clk 00:07:45]} {[%emt 00:00:02]} 26. fxg6 {[%clk 00:27:04]}
{[%emt 00:03:02]} fxg6 {[%clk 00:07:03]} {[%emt 00:01:11]} 27. h3 {[%clk
00:26:40]} {[%emt 00:00:54]} c4 {[%clk 00:04:17]} {[%emt 00:03:17]} 28. Bf3
{[%clk 00:21:44]} {[%emt 00:05:26]} Nh5 {[%clk 00:02:27]} {[%emt 00:02:19]} 29.
Bxh5 {[%clk 00:10:33]} {[%emt 00:11:42]} gxh5 {[%clk 00:02:38]} {[%emt
00:00:18]} 30. Red1 {[%clk 00:11:02]} {[%emt 00:00:02]} Rhd8 {[%clk 00:00:58]}
{[%emt 00:02:11]} 31. Bc5+ {[%clk 00:05:47]} {[%emt 00:05:44]} Ke8 {[%clk
00:01:25]} {[%emt 00:00:03]} 32. Rxd8+ {[%clk 00:06:11]} {[%emt 00:00:07]} Rxd8
{[%clk 00:01:53]} {[%emt 00:00:02]} 33. Rf1 {[%clk 00:04:58]} {[%emt 00:01:42]}
Bd6 {[%clk 00:01:10]} {[%emt 00:01:14]} 34. Bxd6 {[%clk 00:05:21]} {[%emt
00:00:06]} Rxd6 {[%clk 00:01:36]} {[%emt 00:00:05]} 35. Rf5 {[%clk 00:05:49]}
{[%emt 00:00:02]} Rg6 {[%clk 00:01:09]} {[%emt 00:00:55]} 36. Rxe5+ {[%clk
00:05:56]} {[%emt 00:00:23]} Kd7 {[%clk 00:01:30]} {[%emt 00:00:09]} 37. g3
{[%clk 00:02:45]} {[%emt 00:03:42]} g4 {[%clk 00:00:51]} {[%emt 00:01:09]} 38.
Rxh5 {[%clk 00:03:10]} {[%emt 00:00:05]} gxh3 {[%clk 00:01:11]} {[%emt
00:00:10]} 39. Rxh3 {[%clk 00:03:38]} {[%emt 00:00:01]} Rg4 {[%clk 00:00:59]}
{[%emt 00:00:43]} 40. Kd2 {[%clk 00:03:51]} {[%emt 00:00:17]} Rxe4 {[%clk
00:01:22]} {[%emt 00:00:07]} 41. Rh4 {[%clk 00:01:18]} {[%emt 00:03:03]} Re6
{[%clk 00:28:36]} {[%emt 00:03:16]} 42. Rf4 {[%clk 00:30:32]} {[%emt 00:01:15]}
Ke7 {[%clk 00:27:45]} {[%emt 00:01:22]} 43. a4 {[%clk 00:25:38]} {[%emt
00:05:24]} Rh6 {[%clk 00:20:07]} {[%emt 00:08:08]} 44. axb5 {[%clk 00:25:25]}
{[%emt 00:00:43]} Rh2+ {[%clk 00:17:51]} {[%emt 00:02:46]} 45. Ke3 {[%clk
00:23:42]} {[%emt 00:02:11]} axb5 {[%clk 00:18:00]} {[%emt 00:00:23]} 46. Rf2
{[%clk 00:24:02]} {[%emt 00:00:10]} Rh1 {[%clk 00:16:07]} {[%emt 00:02:22]} 47.
Rf5 {[%clk 00:23:24]} {[%emt 00:01:08]} b4 {[%clk 00:12:08]} {[%emt 00:04:30]}
48. cxb4 {[%clk 00:23:34]} {[%emt 00:00:21]} Rd1 {[%clk 00:11:46]} {[%emt
00:00:52]} 49. Rc5 {[%clk 00:21:58]} {[%emt 00:02:03]} Rd3+ {[%clk 00:11:34]}
{[%emt 00:00:44]} 50. Kf4 {[%clk 00:22:24]} {[%emt 00:00:04]} Rd4+ {[%clk
00:10:34]} {[%emt 00:01:31]} 51. Kg5 {[%clk 00:22:20]} {[%emt 00:00:32]} 1-0